fUSD/lending_fUSD_20240407
["ID","MTS","AMOUNT","RATE_DAILY","PERIOD"]
[321722299,1712462683156,154.91576624,0.00020439,2]
[321722300,1712462694888,159.1,0.00015953,2]
[321722301,1712462706754,150.0,0.00019603,4]
[321722302,1712462707077,150.0,0.00019966,4]
[321722303,1712462707378,150.0,0.00020329,4]
[321722304,1712462707690,150.0,0.00020692,4]
[321722305,1712462708003,150.0,0.00021055,4]
[321722306,1712462708301,150.0,0.00021418,4]
[321722307,1712462714126,150.0,0.00019603,4]
[321722308,1712462714446,150.0,0.00019845,4]
[321722309,1712462714773,150.0,0.00020087,4]
[321722310,1712462715062,150.0,0.00020329,4]
[321722311,1712462715496,150.0,0.00020571,4]
[321722312,1712462715656,150.0,0.00020813,4]
[321722313,1712462715966,150.0,0.00021055,4]
[321722314,1712462716291,150.0,0.00021297,4]
[321722315,1712462721964,150.38644774,0.00019603,4]
[321722316,1712462725873,150.0,0.00019603,4]
[321722317,1712462727836,153.91965485,0.00019603,4]
[321722318,1712462728596,5029.07429,0.000285,30]
[321722319,1712462733759,5029.07429,0.00027,30]
[321722320,1712462756720,840.0,0.0001986,2]
[321722321,1712462786043,155.0,0.000205,2]
[321722322,1712462809474,197.48,0.00025,60]
[321722323,1712462841391,540.56,0.00017914,2]
[321722324,1712462841849,540.56,0.00020178,2]
[321722325,1712462859081,1008.66,0.00019832,2]
[321722327,1712462930184,20115.28201229,0.00019832,2]
[321722328,1712462950108,6884.07427322,0.00019832,2]
[321722329,1712462971349,612.68,0.00020054,2]
[321722330,1712462971570,612.68,0.00020109,2]
[321722331,1712462971889,612.68,0.00020164,2]
[321722332,1712462972060,612.68,0.00020219,2]
[321722333,1712462972282,612.68,0.00020274,2]
[321722334,1712462972479,612.68,0.00020329,2]
[321722335,1712462972680,612.68,0.00020384,2]
[321722336,1712462972890,612.68,0.00020439,2]
[321722337,1712462973106,612.68,0.00020494,2]
[321722338,1712463017382,200.4,0.0003,30]
[321722416,1712463032213,-500.0,0.00020501,2]
[321722418,1712463032223,-536.20593536,0.00020502,2]
[321722420,1712463032233,-53.93289333,0.00020505,2]
[321722423,1712463032245,-100.9828729,0.00020505,2]
[321722425,1712463032255,-176.61,0.0002052,2]
[321722427,1712463032265,-612.68,0.00020549,2]
[321722429,1712463032275,-154.91576623,0.00020571,2]
[321722431,1712463032285,-612.68,0.00020604,2]
[321722433,1712463032294,-154.91576623,0.00020637,2]
[321722435,1712463032303,-612.68,0.00020659,2]
[321722437,1712463032312,-819.87431602,0.00020665,2]
[321722439,1712463032322,-150.99,0.00020665,2]
[321722441,1712463032331,-193.0579,0.000207,2]
[321722443,1712463032340,-27310.6889,0.000207,2]
[321722445,1712463032349,-154.91576623,0.00020702,2]
[321722447,1712463032359,-612.68,0.00020715,2]
[321722449,1712463032368,-2695.46637514,0.0002072,2]
[321722451,1712463032378,-8275.66514946,0.0002072,2]
[321722453,1712463032387,-785.89887408,0.00020727,2]
[321722455,1712463032397,-155.17,0.00020764,2]
[321722457,1712463032407,-154.91576623,0.00020768,2]
[321722459,1712463032416,-612.68,0.0002077,2]
[321722460,1712463032426,-9236.32342272,0.0002079,2]
[321722462,1712463032436,-370.08,0.0002079,3]
[321722464,1712463032445,-165.63,0.0002079,2]
[321722466,1712463032455,-278.04251475,0.00020799,2]
[321722468,1712463032464,-114914.76737036,0.000208,2]
[321722471,1712463032476,-1785.75,0.000208,2]
[321722474,1712463032499,-1112.07629639,0.000208,2]
[321722499,1712463038634,-1029.27,0.000208,2]
[321722503,1712463038827,-3044.6768209,0.000208,2]
[321722525,1712463039975,-2314.893918,0.000208,2]
[321722552,1712463042886,-575.13749975,0.000207,2]
[321722553,1712463043364,-424.86250025,0.000207,2]
[321722554,1712463043373,-2075.22668337,0.000208,2]
[321722555,1712463043385,-628.18,0.000208,2]
[321722593,1712463046146,-627.44,0.000208,2]
[321722594,1712463046414,-1928.99753074,0.000208,2]
[321722595,1712463046427,-1146.67791308,0.000208,2]
[321722596,1712463046439,-897.0126949,0.000208,2]
[321722597,1712463046451,-831.83615779,0.000208,2]
[321722598,1712463046462,-1531.66,0.000208,2]
[321722599,1712463046473,-1961.05,0.000208,2]
[321722600,1712463046485,-481.86751435,0.000208,2]
[321722601,1712463046508,-6671.84275276,0.000208,2]
[321722602,1712463109944,161.36,0.00020229,2]
[321722603,1712463197290,163.06,0.00020164,2]
[321722604,1712463292096,328.0,0.00020153,2]
[321722605,1712463304226,9734.0,0.0003,30]
[321722606,1712463320050,530.66,0.00018264,2]
[321722607,1712463345553,672.1,0.00020166,2]
[321722608,1712463377985,481.24868616,0.00020999,5]
[321722609,1712463419203,4675.0,0.0003,30]
[321722610,1712463521642,3384.55,0.00020182,2]
[321722611,1712463644396,161.36,0.00020181,2]
[321722612,1712463673378,183.8,0.00020232,2]
[321722613,1712463673604,183.8,0.00020288,2]
[321722614,1712463673806,183.8,0.00020343,2]
[321722615,1712463674032,183.8,0.00020399,2]
[321722616,1712463674276,183.8,0.00020454,2]
[321722617,1712463766534,737.6,0.00019903,2]
[321722618,1712463803392,504.12,0.00018002,2]
[321722619,1712463803791,504.12,0.00020266,2]
[321722620,1712463908102,157.66136026,0.00019603,4]
[321722621,1712463913966,150.0,0.00019603,4]
[321722622,1712463923611,152.71684214,0.00019603,4]
[321722623,1712463985001,447.73,0.00019869,2]
[321722624,1712464157642,153.16,0.00020143,2]
[321722625,1712464157830,153.16,0.00020205,2]
[321722626,1712464158033,153.16,0.00020267,2]
[321722627,1712464158231,153.16,0.00020329,2]
[321722628,1712464158436,153.16,0.0002039,2]
[321722629,1712464158851,153.16,0.00020452,2]
[321722631,1712464232092,-356.10761566,0.00020513,2]
[321722632,1712464232200,-143.89238434,0.00020513,2]
[321722633,1712464232210,-153.16,0.00020514,2]
[321722634,1712464232219,-153.16,0.00020576,2]
[321722635,1712464232228,-70.70723936,0.00020597,2]
[321722636,1712464232240,-812.84846064,0.00020597,2]
[321722637,1712464232250,-161.77207194,0.00020598,2]
[321722638,1712464232260,-153.16,0.00020637,2]
[321722639,1712464232269,-287.2831866,0.00020697,2]
[321722640,1712464232290,-1762.35325593,0.00020697,2]
[321722641,1712464232300,-155.0,0.00020697,2]
[321722642,1712464232311,-1000.0,0.00020698,2]
[321722643,1712464232321,-150.0,0.00020698,2]
[321722644,1712464232332,-150.0,0.00020698,2]
[321722645,1712464232341,-161.77207194,0.00020699,2]
[321722646,1712464232351,-333.49669932,0.00020699,2]
[321722666,1712464238051,-166.49330068,0.00020699,2]
[321722667,1712464238063,-471.7572741,0.00020699,2]
[321722668,1712464238214,-779.84490049,0.00020699,2]
[321722669,1712464238224,-1043.70280593,0.00020699,2]
[321722670,1712464238267,-2025.65425398,0.00020699,2]
[321722671,1712464238349,-1036.24451051,0.00020699,2]
[321722672,1712464238362,-17849.53638374,0.00020699,2]
[321722675,1712464240177,-984.85,0.00020699,2]
[321722739,1712464246462,-7110.67508,0.00020699,2]
[321722756,1712464260286,17927.7454099,0.00020452,2]
[321722757,1712464262475,18000.0,0.00020452,2]
[321722758,1712464271569,161.27,0.00020018,2]
[321722759,1712464280556,18000.0,0.00020452,2]
[321722760,1712464284122,409.92,0.00020018,2]
[321722761,1712464286855,1178.61572281,0.00020479,2]
[321722762,1712464288598,300.0,0.00020409,2]
[321722763,1712464302628,2055.45,0.00019968,2]
[321722764,1712464304319,12873.84,0.00019968,2]
[321722765,1712464333806,6221.27,0.00019933,2]
[321722766,1712464372784,362.0,0.00019917,2]
[321722767,1712464417344,150.0,0.0003,30]
[321722768,1712464427398,3013.65,0.00019893,2]
[321722769,1712464454952,1882.33,0.00019894,2]
[321722770,1712464466949,161.77207194,0.00020498,2]
[321722771,1712464472831,908.04,0.00019911,2]
[321722772,1712464498274,240.0,0.0003,30]
[321722773,1712464508307,277.77,0.00019885,2]
[321722774,1712464555567,-304.53242447,0.00020506,2]
[321722775,1712464555588,-952.51451347,0.00020507,2]
[321722776,1712464555611,-169.35,0.00020508,2]
[321722777,1712464555632,-573.60306206,0.00020597,2]
[321722778,1712464556092,-500.0,0.00020505,2]
[321722779,1712464556123,-1500.0,0.00020597,2]
[321722780,1712464556464,-2000.0,0.00020597,2]
[321722781,1712464556812,-2000.0,0.00020597,2]
[321722782,1712464557179,-2000.0,0.00020597,2]
[321722783,1712464557633,-2000.0,0.00020597,2]
[321722784,1712464557908,-1525.8477129,0.00020597,2]
[321722785,1712464557930,-474.1522871,0.00020598,2]
[321722786,1712464558376,-65.74289595,0.00020598,2]
[321722787,1712464558400,-931.5441,0.00020599,2]
[321722788,1712464558422,-1002.71300405,0.00020599,2]
[321722789,1712464558766,-1423.20673363,0.00020599,2]
[321722790,1712464558787,-576.79326637,0.000206,2]
[321722791,1712464559887,-2000.0,0.000206,2]
[321722792,1712464562584,-1967.08084874,0.000206,2]
[321722793,1712464562606,-32.91915126,0.00020698,2]
[321722794,1712464562917,-150.0,0.00020697,2]
[321722795,1712464562940,-1850.0,0.00020698,2]
[321722796,1712464563327,-2000.0,0.00020698,2]
[321722797,1712464563763,-2000.0,0.00020698,2]
[321722798,1712464564278,-2000.0,0.00020698,2]
[321722799,1712464570392,-2000.0,0.00020698,2]
[321722800,1712464570542,-2000.0,0.00020698,2]
[321722801,1712464570983,-2000.0,0.00020698,2]
[321722802,1712464571566,-2000.0,0.00020698,2]
[321722803,1712464572157,-2000.0,0.00020698,2]
[321722804,1712464574228,4112.74,0.00020023,2]
[321722805,1712464593141,-2000.0,0.00020599,2]
[321722806,1712464593669,-2000.0,0.00020599,2]
[321722807,1712464594201,-2000.0,0.00020599,2]
[321722808,1712464594730,-1571.36446012,0.00020599,2]
[321722809,1712464594754,-428.63553988,0.00020696,2]
[321722810,1712464595273,-2000.0,0.00020696,2]
[321722811,1712464599029,20944.56,0.00019941,2]
[321722812,1712464609476,472.76256,0.0002049,2]
[321722813,1712464609501,-865.4932854,0.00020597,2]
[321722814,1712464609521,-1134.5067146,0.00020696,2]
[321722815,1712464609927,-339.46293892,0.00020696,2]
[321722816,1712464609949,-500.0,0.00020697,2]
[321722817,1712464609973,-217.36726107,0.00020697,2]
[321722818,1712464609994,-943.16980001,0.00020698,2]
[321722819,1712464610409,-2000.0,0.00020698,2]
[321722820,1712464610843,-2000.0,0.00020698,2]
[321722821,1712464611330,-2000.0,0.00020698,2]
[321722822,1712464621550,587.71,0.00018077,2]
[321722823,1712464621774,587.71,0.00020341,2]
[321722824,1712464621910,-2000.0,0.00020698,2]
[321722825,1712464622340,-2000.0,0.00020698,2]
[321722826,1712464622822,-2000.0,0.00020698,2]
[321722827,1712464623255,-2000.0,0.00020698,2]
[321722828,1712464623708,-2000.0,0.00020698,2]
[321722829,1712464636627,-2000.0,0.00020698,2]
[321722830,1712464637017,-2000.0,0.00020698,2]
[321722831,1712464637499,-2000.0,0.00020698,2]
[321722832,1712464637730,157.84,0.00020143,2]
[321722833,1712464638504,-2000.0,0.00020698,2]
[321722834,1712464638558,157.84,0.00020209,2]
[321722835,1712464638615,157.84,0.00020275,2]
[321722836,1712464638671,-2000.0,0.00020698,2]
[321722837,1712464638721,157.84,0.0002034,2]
[321722838,1712464638923,157.84,0.00020406,2]
[321722839,1712464638968,157.84,0.00020471,2]
[321722848,1712464651075,-157.84,0.00020537,2]
[321722849,1712464651097,-157.84,0.00020603,2]
[321722850,1712464651119,-157.84,0.00020668,2]
[321722851,1712464651141,-1526.48,0.00020698,2]
[321722852,1712464651566,-2000.0,0.00020698,2]
[321722853,1712464652002,-2000.0,0.00020698,2]
[321722854,1712464652449,-2000.0,0.00020698,2]
[321722855,1712464653070,-2000.0,0.00020698,2]
[321722856,1712464661013,-2000.0,0.00020698,2]
[321722857,1712464661452,-2000.0,0.00020698,2]
[321722858,1712464661903,-2000.0,0.00020698,2]
[321722859,1712464662398,-2000.0,0.00020698,2]
[321722860,1712464662913,-2000.0,0.00020698,2]
[321722861,1712464672094,-2000.0,0.00020698,2]
[321722862,1712464672540,-2000.0,0.00020698,2]
[321722863,1712464672997,-2000.0,0.00020698,2]
[321722864,1712464673469,-2000.0,0.00020698,2]
[321722865,1712464673976,-2000.0,0.00020698,2]
[321722866,1712464682929,-2000.0,0.00020698,2]
[321722867,1712464683383,-2000.0,0.00020698,2]
[321722868,1712464683870,-2000.0,0.00020698,2]
[321722869,1712464684347,-2000.0,0.00020698,2]
[321722870,1712464684890,-2000.0,0.00020698,2]
[321722871,1712464696849,-2000.0,0.00020698,2]
[321722872,1712464697432,-2000.0,0.00020698,2]
[321722873,1712464697983,-2000.0,0.00020698,2]
[321722874,1712464698572,-2000.0,0.00020698,2]
[321722875,1712464698936,303.49,0.00019988,2]
[321722876,1712464699105,-2000.0,0.00020698,2]
[321722880,1712464737739,166.36,0.00019983,2]
[321722881,1712464758041,154.11,0.00019965,2]
[321722882,1712464766791,672.06,0.00019965,2]
[321722883,1712464777306,500.0,0.00019947,2]
[321722884,1712464802654,150.0,0.00019965,2]
[321722885,1712464802861,237.48478997,0.00019965,2]
[321722886,1712464888025,150.0,0.0001989,2]
[321722889,1712464933112,1254.55,0.00019899,2]
[321722890,1712465109849,157.84,0.00019998,2]
[321722891,1712465110089,157.84,0.00020147,2]
[321722892,1712465110258,157.84,0.00020296,2]
[321722893,1712465110462,157.84,0.00020445,2]
[321722894,1712465112303,158.87452587,0.00019603,4]
[321722895,1712465133791,1358.4938,0.00020499,2]
[321722896,1712465220385,152.0,0.00029944,30]
[321722897,1712465233799,154.11,0.00019875,2]
[321722898,1712465246859,500.0,0.00019872,2]
[321722899,1712465264681,462.35,0.00019872,2]
[321722900,1712465283296,528.93,0.00017938,2]
[321722901,1712465283567,528.93,0.00020201,2]
[321722915,1712465432360,-2846.20848621,0.00020589,2]
[321722916,1712465432370,-531.06744537,0.0002059,2]
[321722917,1712465432379,-157.84,0.00020593,2]
[321722918,1712465432389,-625.80108729,0.00020598,2]
[321722919,1712465432399,-150.0,0.00020598,2]
[321722920,1712465432408,-2169.7143,0.00020599,2]
[321722921,1712465432418,-1453.9958,0.00020599,2]
[321722922,1712465432427,-7197.59201409,0.00020599,2]
[321722923,1712465432437,-2365.88744367,0.00020608,2]
[321722924,1712465432447,-150.99,0.00020694,2]
[321722925,1712465432456,-813.9299,0.00020694,2]
[321722926,1712465432465,-3967.7948,0.00020694,2]
[321722927,1712465432475,-5655.05011828,0.00020698,2]
[321722928,1712465432494,-2199.48465574,0.00020698,2]
[321722929,1712465432505,-67018.22139229,0.00020698,2]
[321722930,1712465432518,-8549.29966387,0.00020698,2]
[321722931,1712465432527,-150.99,0.00020698,2]
[321722932,1712465432537,-4227.5973,0.00020699,2]
[321722933,1712465432547,-48290.3497,0.00020699,2]
[321722934,1712465432556,-625.80108729,0.000207,2]
[321722935,1712465432566,-3170.05882785,0.00020708,2]
[321722936,1712465432574,-1040.85157412,0.00020741,2]
[321722937,1712465432584,-157.84,0.00020742,2]
[321722938,1712465432593,-165.63,0.0002079,2]
[321722939,1712465432602,-14290.3094999,0.00020794,2]
[321722940,1712465432612,-4367.442623,0.00020794,2]
[321722941,1712465432621,-13734.252,0.00020794,2]
[321722942,1712465432630,-438.95414611,0.00020798,2]
[321722943,1712465432639,-777.69276381,0.00020798,2]
[321722944,1712465432649,-196.86686479,0.00020798,2]
[321722945,1712465432659,-712.10349042,0.00020799,2]
[321722946,1712465432668,-780.55,0.00020799,2]
[321722947,1712465432677,-780.55,0.00020799,2]
[321722948,1712465432686,-780.55,0.00020799,2]
[321722949,1712465432696,-780.55,0.00020799,2]
[321722950,1712465432705,-780.55,0.00020799,2]
[321722951,1712465432713,-780.55,0.00020799,2]
[321722952,1712465432723,-780.55,0.00020799,2]
[321722953,1712465432732,-780.55,0.00020799,2]
[321722954,1712465432741,-780.55,0.00020799,2]
[321722955,1712465432750,-780.55,0.00020799,2]
[321722956,1712465432759,-780.55,0.00020799,2]
[321722957,1712465432769,-780.55,0.00020799,2]
[321722958,1712465432778,-780.55,0.00020799,2]
[321722959,1712465432787,-780.55,0.00020799,2]
[321722960,1712465432797,-780.55,0.00020799,2]
[321722961,1712465432808,-780.55,0.00020799,2]
[321722963,1712465432817,-780.55,0.00020799,2]
[321722965,1712465432827,-780.55,0.00020799,2]
[321722967,1712465432835,-780.55,0.00020799,2]
[321722969,1712465432846,-780.55,0.00020799,2]
[321722970,1712465432858,-780.55,0.00020799,2]
[321722971,1712465432867,-780.55,0.00020799,2]
[321722972,1712465432877,-780.55,0.00020799,2]
[321722973,1712465432887,-780.71,0.00020799,2]
[321722974,1712465432896,-92646.74475655,0.000208,2]
[321722975,1712465432913,-1784.75486613,0.000208,2]
[321722976,1712465433639,-5059.01860087,0.000208,2]
[321722977,1712465433695,-3751.18262218,0.000208,2]
[321722978,1712465433707,-1743.09709085,0.000208,2]
[321722999,1712465438275,-646.00180649,0.00020588,2]
[321723000,1712465438687,836.03,0.00020327,2]
[321723005,1712465440393,-284.46639947,0.00020588,2]
[321723006,1712465440449,-397.44229376,0.00020588,2]
[321723007,1712465440458,-78.46738279,0.000208,2]
[321723008,1712465440666,-465.13515,0.000208,2]
[321723012,1712465443301,-311.4504805,0.000208,2]
[321723016,1712465443360,-1176.92339749,0.000208,2]
[321723018,1712465443370,-1025.0,0.000208,2]
[321723019,1712465443380,-1882.93305365,0.00020813,2]
[321723045,1712465443621,-338.80231068,0.00020813,2]
[321723055,1712465558271,-644.30260577,0.00020588,2]
[321723056,1712465558292,-1355.69739423,0.00020589,2]
[321723057,1712465559172,-2000.0,0.00020589,2]
[321723058,1712465559612,-2000.0,0.00020589,2]
[321723059,1712465559962,6508.869244,0.00020485,2]
[321723060,1712465560053,-851.85858303,0.00020589,2]
[321723061,1712465560074,-472.76257,0.0002068,2]
[321723062,1712465578592,480.22190067,0.00020693,2]
[321723063,1712465624192,195.1569463,0.00020693,2]
[321723064,1712465624213,449.14565947,0.00020693,2]
[321723065,1712465642908,150.0,0.00020693,2]
[321723066,1712465656875,1010.98916829,0.0002,2]
[321723067,1712465658644,1000.0,0.0003,30]
[321723068,1712465677539,157.84,0.00020582,2]
[321723069,1712465687316,1000.0,0.0003,30]
[321723070,1712465692682,232.02517224,0.00020693,2]
[321723071,1712465692705,412.27743353,0.00020693,2]
[321723072,1712465697402,161.77207194,0.00020612,2]
[321723073,1712465745880,549.3,0.00020359,2]
[321723074,1712465808731,630.12,0.00020234,2]
[321723075,1712465866496,515.02,0.00018233,2]
[321723076,1712465866698,515.02,0.00020497,2]
[321723077,1712465889030,493.48663113,0.00020234,2]
[321723078,1712465937594,5576.24,0.00020073,2]
[321723079,1712465949803,694.97,0.00020103,2]
[321723080,1712466027183,1819.84,0.0002007,2]
[321723081,1712466037789,18180.16,0.0002005,2]
[321723082,1712466037812,44567.52789518,0.0002005,2]
[321723083,1712466209426,275.32557683,0.0001995,2]
[321723084,1712466221687,200.0,0.00020216,2]
[321723085,1712466264938,250.0,0.00020178,2]
[321723086,1712466302747,574.69,0.00020124,2]
[321723087,1712466314335,495.9,0.00020141,2]
[321723088,1712466349553,186.69388539,0.000205,2]
[321723089,1712466382786,508.84,0.00018235,2]
[321723090,1712466382991,508.84,0.00020499,2]
[321723091,1712466409552,416.92,0.00020153,2]
[321723092,1712466432841,462.98,0.00020123,2]
[321723093,1712466435717,1904.04,0.00020123,2]
[321723094,1712466441160,-727.6017,0.00020527,2]
[321723095,1712466441181,-1651.43770392,0.000206,2]
[321723096,1712466490423,157.84,0.00020383,2]
[321723097,1712466510854,150.0,0.00029734,120]
[321723105,1712466631530,-6772.82262061,0.000206,2]
[321723106,1712466631540,-472.76256,0.000206,2]
[321723107,1712466631549,-1000.0,0.000206,2]
[321723108,1712466631559,-1964.15492892,0.000206,2]
[321723109,1712466631569,-3159.42770299,0.00020692,2]
[321723110,1712466631578,-16337.40206542,0.00020693,2]
[321723112,1712466637574,-1996.07314706,0.00020693,2]
[321723131,1712466639669,-584.7847,0.00020693,2]
[321723132,1712466639843,-667.26386411,0.00020693,2]
[321723133,1712466639855,-1212.14956,0.00020693,2]
[321723134,1712466639897,-996.66377115,0.00020693,2]
[321723135,1712466639910,-2095.44804725,0.00020693,2]
[321723136,1712466639923,-509.20427312,0.00020693,2]
[321723168,1712466642492,-5488.62000048,0.00020693,2]
[321723175,1712466642552,-9083.17873985,0.00020693,2]
[321723253,1712466645532,-34779.58494059,0.00020693,2]
[321723254,1712466645593,-510.14368318,0.00020693,2]
[321723255,1712466645650,-27421.82547391,0.00020693,2]
[321723256,1712466645663,-17924.26888817,0.00020693,2]
[321723257,1712466645674,-2599.91182864,0.00020693,2]
[321723258,1712466645683,-96.48817136,0.00020694,2]
[321723259,1712466645694,-578.27941501,0.00020694,2]
[321723260,1712466645706,-15562.02937542,0.00020694,2]
[321723261,1712466645775,-2052.01337319,0.00020694,2]
[321723262,1712466645915,-348.46505544,0.00020694,2]
[321723386,1712466662243,151.0,0.00029625,120]
[321723387,1712466757278,213.53,0.00020039,2]
[321723388,1712466757667,213.53,0.00025049,120]
[321723389,1712466757906,213.53,0.00027554,120]
[321723390,1712466789403,603.28,0.00019989,2]
[321723391,1712466807831,520.7345,0.000205,2]
[321723392,1712466822416,375.86,0.00019946,2]
[321723393,1712466880194,433.87253669,0.00020482,2]
[321723394,1712466920230,457.95,0.00017996,2]
[321723395,1712466920465,457.95,0.0002026,2]
[321723396,1712466922415,7285.52,0.00019914,2]
[321723397,1712466961319,6886.75561661,0.0002049,2]
[321723398,1712466998442,411.16,0.00019923,2]
[321723399,1712467098610,733.43989506,0.0003,30]
[321723400,1712467105072,151.0,0.00029748,120]
[321723401,1712467122173,-620.31159771,0.00020545,2]
[321723402,1712467122197,-644.30260577,0.00020546,2]
[321723403,1712467122221,-644.30260577,0.00020546,2]
[321723404,1712467122245,-644.30260577,0.00020546,2]
[321723405,1712467122270,-644.30260577,0.00020546,2]
[321723406,1712467122295,-736.2979285,0.00020547,2]
[321723407,1712467122321,-500.0,0.00020548,2]
[321723408,1712467122346,-236.38128,0.0002055,2]
[321723409,1712467122371,-1000.0,0.000206,2]
[321723410,1712467122395,-6229.79877071,0.00020646,2]
[321723411,1712467281928,517.37,0.0002006,2]
[321723412,1712467319186,16594.72808377,0.0002006,2]
[321723413,1712467325076,187.93,0.00020017,2]
[321723414,1712467418695,412.15,0.00018169,2]
[321723415,1712467418912,412.15,0.00020433,2]
[321723416,1712467464487,273.77,0.00020067,2]
[321723417,1712467502894,150.0,0.00018888,2]
[321723418,1712467503187,150.0,0.00018988,2]
[321723419,1712467503507,150.0,0.00019088,2]
[321723420,1712467503797,150.0,0.00019187,4]
[321723421,1712467504095,150.0,0.00019287,4]
[321723422,1712467504924,150.0,0.00019387,4]
[321723423,1712467505521,150.0,0.00019487,4]
[321723424,1712467505591,150.0,0.00019587,4]
[321723425,1712467505827,150.0,0.00019687,4]
[321723426,1712467506111,150.0,0.00019787,4]
[321723427,1712467506399,150.0,0.00019887,4]
[321723428,1712467506704,150.0,0.00019987,4]
[321723429,1712467507025,150.0,0.00020087,4]
[321723430,1712467507318,150.0,0.00020187,4]
[321723431,1712467507622,150.0,0.00020287,4]
[321723432,1712467507930,150.0,0.00020387,4]
[321723433,1712467508240,150.0,0.00020487,4]
[321723434,1712467508540,150.0,0.00020587,4]
[321723435,1712467508967,150.0,0.00020686,4]
[321723436,1712467509268,150.0,0.00020786,4]
[321723437,1712467509566,150.0,0.00020886,4]
[321723438,1712467509863,194.12001559,0.00020986,4]
[321723439,1712467511786,150.0,0.00018888,2]
[321723440,1712467512643,150.0,0.00019412,4]
[321723441,1712467512975,150.0,0.00019937,4]
[321723442,1712467513251,150.0,0.00020462,4]
[321723443,1712467513563,150.00000001,0.00020986,4]
[321723444,1712467519343,150.0,0.00018888,2]
[321723445,1712467519733,150.0,0.00019937,4]
[321723446,1712467520268,150.0,0.00020986,4]
[321723447,1712467553118,-644.30260577,0.00020599,2]
[321723448,1712467553141,-1000.0,0.000206,2]
[321723449,1712467553163,-996.05467624,0.00020645,2]
[321723450,1712467553187,-10422.49529811,0.00020646,2]
[321723451,1712467691642,2527.0,0.0002,2]
[321723452,1712467707886,2500.0,0.0002,2]
[321723453,1712467720655,2500.0,0.0002,2]
[321723454,1712467727171,1373.59842097,0.00020061,2]
[321723455,1712467727615,1373.59842097,0.00020303,2]
[321723456,1712467731623,2500.0,0.0002,2]
[321723457,1712467757581,-644.30260577,0.00020544,2]
[321723458,1712467757604,-463.633,0.00020545,2]
[321723459,1712467757630,-531.25844407,0.00020643,2]
[321723460,1712467757664,-1937.80595016,0.00020645,2]
[321723461,1712467804850,-677.1471627,0.00020645,2]
[321723462,1712467804875,-11816.02404829,0.00020646,2]
[321723463,1712467804899,-205.771884,0.00020647,2]
[321723464,1712467804922,-836.872635,0.00020647,2]
[321723465,1712467804946,-500.0,0.00020647,2]
[321723466,1712467804968,-200.0,0.00020647,2]
[321723467,1712467804991,-196.9844,0.00020694,2]
[321723468,1712467805015,-7351.42758489,0.00020715,2]
[321723469,1712467805041,-169.77,0.00020724,2]
[321723470,1712467805063,-625.0,0.00020743,2]
[321723471,1712467805086,-1829.21999013,0.00020777,2]
[321723472,1712467805108,-1047.78229499,0.00020784,2]
[321723473,1712467824700,201.23,0.00020202,2]
[321723481,1712467831635,-4786.17920501,0.00020784,2]
[321723482,1712467831644,-150.99,0.00020784,2]
[321723483,1712467831653,-2604.9739,0.000208,2]